bitfinex/quotes_ETHUSD_20251124
["timestamp","ask_amount","ask_price","bid_price","bid_amount"]
[1763947777796,4.121538,2798.6,2798.5,0.001]
[1763947777994,5.09232344,2798.6,2798.5,0.001]
[1763947778162,2.51821115,2798.6,2798.5,0.001]
[1763947778500,2.18507644,2798.6,2798.5,0.001]
[1763947780192,1.75329264,2798.6,2798.5,0.001]
[1763947783383,0.1963,2798.7,2798.5,0.001]
[1763947783585,0.5631,2798.9,2798.5,0.001]
[1763947783995,0.4634,2799.3,2798.6,3.82]
[1763947784200,0.4634,2799.3,2798.7,3.82]
[1763947784201,0.33413383,2799.2,2798.7,3.82]
[1763947784503,0.37878944,2799.2,2798.7,3.82]
[1763947784686,0.5822,2798.8,2798.7,3.82]
[1763947785073,1.0418,2798.8,2798.7,3.82]
[1763947785504,1.94879264,2798.8,2798.7,3.82]
[1763947785806,2.14813778,2798.8,2798.7,3.82]
[1763947786275,2.48239559,2798.8,2798.7,3.82]
[1763947786874,2.52705758,2798.8,2798.7,3.82]
[1763947787574,0.90699264,2798.7,2798.5,3.821]
[1763947787775,0.50806359,2798.7,2798.5,3.821]
[1763947787976,0.9538,2798.6,2798.5,3.821]
[1763947788296,1.17306014,2798.6,2798.5,3.821]
[1763947789411,13.49547841,2798.6,2798.4,0.001]
[1763947789609,8.33379727,2798.5,2798.4,0.001]
[1763947789947,7.65817927,2798.5,2798.4,0.001]
[1763947790112,6.45112113,2798.5,2798.4,0.001]
[1763947790312,4.30012113,2798.5,2798.4,0.001]
[1763947791113,19.47359399,2798.5,2798.4,0.001]
[1763947791299,7.67328813,2798.5,2798.4,0.001]
[1763947791504,6.80656313,2798.5,2798.4,0.001]
[1763947791697,6.85122991,2798.5,2798.4,0.001]
[1763947792015,10.42457277,2798.5,2798.4,0.001]
[1763947792318,15.10278499,2798.5,2798.4,0.001]
[1763947792683,14.69955599,2798.5,2798.4,0.001]
[1763947793108,11.12621313,2798.5,2798.4,0.001]
[1763947793311,4.30012113,2798.5,2798.4,0.001]
[1763947793722,1.28794889,2798.5,2798.4,0.001]
[1763947795190,7.94207453,2798.5,2798.4,0.001]
[1763947795424,9.33573253,2798.5,2798.4,0.001]
[1763947795587,7.89990153,2798.5,2798.4,0.001]
[1763947795890,4.80893553,2798.5,2798.4,0.001]
[1763947796088,4.8189601,2798.5,2798.4,0.001]
[1763947796295,4.86362688,2798.5,2798.4,0.001]
[1763947796492,9.51676988,2798.5,2798.4,0.001]
[1763947796693,13.04544596,2798.5,2798.4,0.001]
[1763947796893,15.6555037,2798.5,2798.4,0.001]
[1763947797090,7.72224664,2798.4,2798.3,0.001]
[1763947797327,6.88624512,2798.4,2798.3,0.001]
[1763947797532,1.28794889,2798.4,2798.3,0.001]
[1763947797894,4.59557453,2798.4,2798.3,0.001]
[1763947798123,7.53987457,2798.4,2798.3,0.001]
[1763947798435,10.50174113,2798.4,2798.3,0.001]
[1763947798632,3.05799264,2798.0,2796.8,0.001]
[1763947798821,0.90699264,2797.8,2796.8,0.4719]
[1763947799020,0.33404311,2797.7,2796.8,0.4719]
[1763947799330,0.79744311,2797.8,2796.8,0.4719]
[1763947799530,0.33404311,2797.7,2796.8,0.4719]
[1763947800422,0.4944,2796.9,2796.8,0.001]
[1763947800618,0.6784,2796.9,2796.8,0.001]
[1763947800820,9.81476055,2796.9,2796.8,0.001]
[1763947801007,9.81476055,2796.9,2796.5,0.001]
[1763947801008,10.163517,2796.6,2796.5,0.001]
[1763947801206,2.751539,2796.3,2796.2,0.001]
[1763947801407,0.90699264,2796.2,2796.0,0.001]
[1763947801607,12.43367956,2796.1,2796.0,0.001]
[1763947801909,5.83630215,2796.1,2796.0,0.001]
[1763947802109,1.73091456,2796.1,2796.0,0.001]
[1763947802311,0.90699264,2796.1,2796.0,0.4658]
[1763947802730,0.90699264,2796.1,2796.0,0.9367]
[1763947803342,0.184,2797.3,2796.0,0.9367]
[1763947803535,0.184,2797.3,2796.1,0.669]
[1763947803536,0.50808754,2797.2,2796.1,0.669]
[1763947803899,4.75925416,2797.0,2796.0,0.001]
[1763947804097,1.05864658,2796.9,2796.1,0.669]
[1763947804324,0.4634,2797.2,2796.2,0.4709]
[1763947805602,0.04468914,2797.1,2796.2,0.4709]
[1763947805801,0.04469074,2797.0,2796.2,0.4709]
[1763947806009,0.04469074,2797.0,2796.0,0.001]
[1763947806201,0.4634,2796.9,2796.1,0.1981]
[1763947806804,0.90699264,2796.7,2796.0,0.001]
[1763947807007,0.64647576,2796.6,2796.1,0.183]
[1763947807235,0.4803,2797.0,2796.1,0.183]
[1763947808304,0.90699264,2797.2,2796.1,0.6353]
[1763947808751,0.90699264,2797.2,2796.2,0.4523]
[1763947809505,0.1881,2797.5,2796.2,0.4523]
[1763947809705,0.1881,2797.5,2796.3,0.44553]
[1763947810133,0.5207597,2797.5,2796.4,0.4523]
[1763947811054,0.4803,2798.1,2797.4,0.6487]
[1763947811206,0.1881,2797.9,2796.4,0.4523]
[1763947811410,0.04467796,2797.8,2796.4,0.4523]
[1763947811630,0.52497796,2797.8,2796.4,0.4523]
[1763947811842,4.92801564,2797.7,2796.4,0.4523]
[1763947812013,0.90699264,2797.3,2796.1,0.6353]
[1763947812206,0.04468754,2797.2,2796.1,0.6353]
[1763947812406,2.071522,2797.0,2796.0,0.001]
[1763947812634,0.90699264,2797.1,2796.0,0.001]
[1763947812635,0.90699264,2797.1,2796.1,0.184]
[1763947812838,1.38929264,2797.2,2796.1,0.184]
[1763947813004,1.13984382,2797.1,2796.1,0.184]
[1763947813206,1.09515468,2797.1,2796.1,0.6363]
[1763947813409,0.4803,2797.0,2796.1,0.6363]
[1763947814243,0.61485468,2797.1,2796.2,0.4523]
[1763947814538,0.002,2797.2,2796.2,0.4523]
[1763947815009,0.002,2797.2,2796.2,0.5523]
[1763947815944,0.002,2797.2,2796.2,0.4523]
[1763947816122,0.002,2797.2,2796.2,0.5523]
[1763947816323,0.002,2797.2,2797.1,0.6487]
[1763947816843,0.002,2797.2,2797.1,1.101]
[1763947817039,0.002,2797.2,2796.7,0.4523]
[1763947817246,0.002,2797.2,2796.1,0.184]
[1763947817413,0.002,2797.2,2796.2,0.4523]
[1763947817613,0.04668754,2797.2,2796.2,0.4523]
[1763947818146,0.002,2797.2,2796.2,0.5523]
[1763947818652,0.002,2797.2,2797.1,0.6487]
[1763947819178,0.002,2797.2,2796.5,0.4523]
[1763947819862,0.002,2797.2,2797.1,0.6487]
[1763947820060,0.002,2797.2,2796.5,0.4523]
[1763947821296,0.002,2797.2,2797.1,0.183]
[1763947821476,0.002,2797.2,2797.1,0.6487]
[1763947821831,0.002,2797.2,2796.5,0.4523]
[1763947822729,1.38929264,2797.2,2796.2,0.4523]
[1763947822931,0.61485468,2797.1,2796.1,0.184]
[1763947823130,0.04469074,2797.0,2796.1,0.184]
[1763947823368,0.61485468,2797.1,2796.2,0.4523]
[1763947823969,1.09515468,2797.1,2796.2,0.4523]
[1763947824876,0.52499074,2797.0,2796.1,0.184]
[1763947825083,0.20488381,2797.0,2796.2,0.4523]
[1763947826070,0.20488381,2797.0,2796.1,0.184]
[1763947826071,0.04469233,2796.9,2796.1,0.184]
[1763947826374,0.68518381,2797.0,2796.1,0.184]
[1763947827061,0.68518381,2797.0,2796.1,0.6363]
[1763947827227,0.20488381,2797.0,2796.2,0.4523]
[1763947828211,1.01954604,2797.0,2796.2,0.4523]
[1763947828376,0.68518381,2797.0,2796.2,0.4523]
[1763947829002,0.4803,2796.9,2796.1,0.001]
[1763947829313,0.90699264,2796.7,2796.1,0.001]
[1763947829489,0.60006913,2796.6,2796.1,0.001]
[1763947829812,1.08036913,2796.6,2796.1,0.001]
[1763947830015,0.20488381,2797.0,2796.5,0.4657]
[1763947830324,0.4803,2797.4,2796.6,0.4657]
[1763947830522,0.33446237,2797.3,2796.6,0.4657]
[1763947830881,4.76125416,2797.8,2796.1,4.004]
[1763947830882,0.002,2797.8,2797.1,0.6487]
[1763947831383,0.002,2797.8,2797.1,1.101]
[1763947832206,0.002,2797.8,2797.1,1.201]
[1763947832517,0.002,2797.8,2797.1,1.101]
[1763947832677,0.002,2797.8,2797.4,0.4657]
[1763947833078,0.002,2797.8,2797.4,0.918]
[1763947833319,0.002,2797.8,2797.4,1.018]
[1763947833891,0.002,2797.8,2797.1,0.183]
[1763947834093,0.002,2797.8,2796.1,0.184]
[1763947834094,0.04667796,2797.8,2796.8,0.4523]
[1763947834417,0.4823,2797.8,2796.8,0.4523]
[1763947834916,0.4823,2797.5,2796.4,0.4523]
[1763947835346,0.04468434,2797.4,2796.4,0.4523]
[1763947835638,0.4823,2797.5,2796.4,0.4523]
[1763947836368,0.04468434,2797.4,2796.4,0.4523]
[1763947836643,0.002,2797.5,2796.4,0.4637]
[1763947836812,0.002,2797.5,2796.4,0.5637]
[1763947837540,0.002,2797.5,2796.4,0.4637]
[1763947837740,0.002,2797.5,2796.7,0.1]
[1763947838244,0.002,2797.5,2796.8,0.4637]
[1763947840730,0.002,2797.5,2797.4,0.6565]
[1763947841049,0.002,2797.5,2797.4,1.1202]
[1763947842242,0.002,2797.5,2797.4,0.6565]
[1763947842661,0.002,2797.5,2797.2,0.1937]
[1763947842940,0.002,2797.5,2797.0,0.1937]
[1763947843139,0.002,2797.5,2796.5,0.4637]
[1763947843343,0.002,2797.5,2796.5,0.5637]
[1763947843647,1.37599264,2797.5,2796.3,0.4539]
[1763947843821,1.42067539,2797.5,2796.1,0.184]
[1763947844020,1.42067539,2797.5,2796.1,0.001]
[1763947844021,0.80132713,2797.4,2796.1,0.001]
[1763947844246,0.4903,2796.2,2796.1,0.001]
[1763947844652,0.92049264,2796.1,2795.9,0.001]
[1763947844955,14.84474112,2796.0,2795.9,0.001]
[1763947845111,18.42127903,2796.0,2795.9,0.001]
[1763947845509,23.69461812,2796.0,2795.9,0.001]
[1763947845708,15.29821303,2796.0,2795.9,0.001]
[1763947846522,16.16060064,2795.9,2795.7,0.001]
[1763947846723,1.39729264,2795.7,2795.4,0.001]
[1763947846942,0.33446879,2795.6,2795.4,0.001]
[1763947847124,0.44454853,2796.0,2795.4,0.001]
[1763947847125,0.4903,2795.5,2795.4,0.001]
[1763947847621,0.9573,2795.5,2795.4,0.001]
[1763947849551,6.24065764,2795.5,2795.4,0.001]
[1763947849719,5.5916914,2795.5,2795.4,0.001]
[1763947849919,0.90699264,2795.5,2795.4,0.001]
[1763947850122,0.1847,2796.3,2795.4,4.7464]
[1763947850340,0.1847,2797.0,2795.5,3.82]
[1763947850341,0.467,2796.8,2795.5,3.82]
[1763947850553,0.1847,2796.5,2795.5,0.4539]
[1763947851162,0.467,2796.4,2795.4,0.001]
[1763947851323,0.51170032,2796.4,2795.4,0.001]
[1763947851522,1.41869296,2796.4,2795.4,0.001]
[1763947851755,0.63626471,2796.3,2795.4,0.001]
[1763947851956,1.10326471,2796.3,2795.4,0.001]
[1763947852158,0.467,2796.2,2795.4,0.001]
[1763947854573,0.63626471,2796.3,2795.4,0.4549]
[1763947854574,0.04470512,2796.1,2795.4,0.4549]
[1763947854863,0.04470512,2796.1,2795.4,0.001]
[1763947855059,0.51170512,2796.1,2795.4,0.001]
[1763947855239,0.90699264,2796.0,2795.4,0.001]
[1763947855638,0.6517,2796.5,2795.5,0.4539]
[1763947858266,0.1847,2796.5,2795.5,0.4539]
[1763947858872,0.1847,2796.5,2795.6,3.82]
[1763947859371,0.467,2796.4,2795.6,3.82]
[1763947859528,0.51170032,2796.4,2795.6,3.82]
[1763947859736,0.467,2796.8,2795.7,0.4539]
[1763947860068,0.22939553,2796.7,2795.8,10.29]
[1763947860426,0.1847,2797.1,2795.9,10.7439]
[1763947860859,0.1847,2797.1,2796.0,0.4539]
[1763947861063,0.002,2797.5,2796.1,3.92]
[1763947861242,0.467,2797.4,2796.2,3.82]
[1763947862266,0.467,2797.4,2796.2,4.2739]
[1763947862562,0.467,2797.4,2796.3,0.4539]
[1763947862766,0.002,2797.5,2796.3,4.2739]
[1763947862962,0.002,2797.5,2796.4,0.4539]
[1763947863340,0.469,2797.5,2796.3,3.82]
[1763947863540,2.40407934,2797.4,2796.4,0.4539]
[1763947863747,0.3780072,2797.3,2796.4,0.4539]
[1763947863965,0.469,2797.5,2796.4,0.4539]
[1763947864165,0.04468754,2797.2,2796.3,3.82]
[1763947864372,0.467,2797.3,2796.3,3.82]
[1763947864571,3.28984964,2796.3,2795.9,3.82]
[1763947864736,3.28984964,2796.3,2795.5,6.47]
[1763947864737,1.37658112,2796.2,2795.5,0.001]
[1763947865082,0.4857,2795.6,2795.5,0.001]
[1763947865237,1.39269264,2795.6,2795.5,0.001]
[1763947865440,0.90699264,2795.6,2795.5,0.001]
[1763947865674,1.39729264,2795.6,2795.5,0.001]
[1763947865978,1.86429264,2795.6,2795.5,0.001]
[1763947866150,2.0507219,2795.6,2795.5,0.001]
[1763947866348,1.5837219,2795.6,2795.5,0.001]
[1763947866872,2.0350219,2795.6,2795.5,0.001]
[1763947867234,10.5243349,2795.6,2795.5,0.001]
[1763947867430,5.0247939,2795.6,2795.5,0.001]
[1763947867867,17.20384664,2795.5,2795.3,0.001]
[1763947868167,20.78115221,2795.4,2795.3,0.001]
[1763947868368,22.02901884,2795.4,2795.3,0.001]
[1763947868578,22.02901884,2795.4,2794.4,0.001]
[1763947868579,0.4559,2794.8,2794.4,0.001]
[1763947868875,22.47029579,2794.5,2794.4,0.001]
[1763947869086,0.90699264,2794.2,2793.8,0.001]
[1763947869251,14.70093079,2793.9,2793.8,0.001]
[1763947869449,11.42850879,2793.9,2793.8,0.001]
[1763947869658,11.87980879,2793.9,2793.8,0.001]
[1763947869862,13.06778967,2793.9,2793.8,0.001]
[1763947870069,13.40053042,2793.9,2793.8,0.001]
[1763947870256,24.16681742,2793.9,2793.8,0.001]
[1763947870573,7.53722267,2793.9,2793.8,0.001]
[1763947870775,2.72557352,2793.9,2793.8,0.001]
[1763947870986,0.90699264,2793.9,2793.8,0.001]
[1763947871182,9.07668364,2793.9,2793.8,0.001]
[1763947871354,11.60582179,2793.9,2793.8,0.001]
[1763947871669,15.51730082,2793.9,2793.8,0.001]
[1763947871973,12.38657465,2793.9,2793.8,0.001]
[1763947872174,19.41433612,2793.9,2793.8,0.001]
[1763947872348,13.02323312,2793.9,2793.8,0.001]
[1763947872554,2.16457011,2793.9,2793.8,0.001]
[1763947872762,0.90699264,2793.9,2793.8,0.001]
[1763947872962,1.80679264,2793.9,2793.8,0.001]
[1763947873470,0.90699264,2793.9,2793.8,0.001]
[1763947874103,1.80679264,2793.9,2793.8,0.001]
[1763947874846,10.46300964,2793.9,2793.8,0.001]
[1763947875043,11.5282306,2793.9,2793.8,0.001]
[1763947875376,2.4207136,2793.9,2793.8,0.001]
[1763947875678,0.90699264,2793.9,2793.8,0.001]
[1763947875874,6.66580864,2793.9,2793.8,0.001]
[1763947876280,1.99599264,2793.9,2793.8,0.001]
[1763947877181,1.99599264,2793.9,2793.3,0.001]
[1763947877182,16.296854,2793.7,2793.3,0.001]
[1763947877481,0.90699264,2793.4,2793.3,0.001]
[1763947877781,8.41473964,2793.4,2793.3,0.001]
[1763947877985,20.25845079,2793.4,2793.3,0.001]
[1763947878168,18.07438279,2793.4,2793.3,0.001]
[1763947878570,0.90699264,2793.1,2793.0,0.001]
[1763947878772,17.55500357,2793.1,2793.0,0.001]
[1763947879082,17.45143157,2793.1,2793.0,0.001]
[1763947879257,14.07996757,2793.1,2793.0,0.001]
[1763947879782,8.86760057,2793.1,2793.0,0.001]
[1763947879985,19.46623057,2793.1,2793.0,0.001]
[1763947880376,23.0464819,2793.1,2793.0,0.001]
[1763947880883,19.46623057,2793.1,2793.0,0.001]
[1763947881385,23.0464819,2793.1,2793.0,0.001]
[1763947881551,0.90699264,2793.0,2792.4,0.001]
[1763947881750,10.08049964,2792.5,2792.4,0.001]
[1763947882181,14.22371264,2792.5,2792.4,0.001]
[1763947882382,0.90699264,2792.5,2792.4,0.4952]
[1763947882986,0.90699264,2792.5,2792.4,0.9577]
[1763947883572,5.398837,2793.8,2792.4,0.9577]
[1763947883888,0.64867723,2793.7,2793.0,0.001]
[1763947884101,2.100391,2793.6,2793.0,0.001]
[1763947884289,1.35829264,2793.6,2793.0,0.001]
[1763947884480,0.4513,2793.6,2793.0,0.001]
[1763947884796,0.90699264,2793.4,2793.0,0.001]
[1763947884996,0.4343,2793.1,2793.0,0.001]
[1763947885367,8.28026264,2793.1,2793.0,0.001]
[1763947885562,9.1082889,2793.1,2793.0,0.001]
[1763947885766,13.91993805,2793.1,2793.0,0.001]
[1763947885966,0.90699264,2792.8,2792.7,0.001]
[1763947886318,9.01346964,2792.8,2792.7,0.001]
[1763947886485,3.24381664,2792.8,2792.7,0.001]
[1763947886684,3.97136661,2792.8,2792.7,0.001]
[1763947886988,4.46742455,2792.8,2792.7,0.001]
[1763947887294,9.40864061,2792.8,2792.7,0.001]
[1763947887895,12.98927653,2792.8,2792.7,0.001]
[1763947888116,9.40864061,2792.8,2792.7,0.001]
[1763947888278,18.57189661,2792.8,2792.7,0.001]
[1763947888481,22.15253253,2792.8,2792.7,0.001]
[1763947888792,18.57189661,2792.8,2792.7,0.001]
[1763947889099,1.63454261,2792.8,2792.7,0.001]
[1763947889395,1.83715058,2792.8,2792.7,0.001]
[1763947889595,4.20099264,2792.8,2792.7,0.001]
[1763947890209,4.24575058,2792.8,2792.7,0.001]
[1763947890410,10.21112764,2792.8,2792.7,0.001]
[1763947890900,2.151,2792.6,2792.4,0.001]
[1763947891076,2.151,2792.1,2791.0,0.6444]
[1763947891279,0.90699264,2791.7,2791.0,0.1819]
[1763947891483,0.90699264,2792.1,2791.1,0.4625]
[1763947891687,0.90699264,2792.5,2791.1,0.4625]
[1763947891876,2.36007,2793.0,2792.2,0.1819]
[1763947892076,0.31880963,2792.9,2792.4,0.4942]
[1763947892277,0.33098053,2793.2,2792.4,0.9567]
[1763947892507,0.33098053,2793.5,2792.4,0.9567]
[1763947892807,5.261248,2793.4,2792.5,0.4625]
[1763947893008,0.04474513,2793.6,2792.5,0.4625]
[1763947893207,8.942047,2793.3,2792.2,0.1819]
[1763947893508,1.00363445,2793.2,2792.3,0.4625]
[1763947893707,0.18730489,2793.4,2792.3,0.4625]
[1763947894277,0.90699264,2793.2,2792.3,0.4625]
[1763947894576,0.18730489,2793.4,2792.3,0.4625]
[1763947895397,0.33277248,2793.4,2792.3,0.4625]
[1763947895707,0.90699264,2793.5,2792.3,0.4625]
[1763947896005,0.96360852,2793.4,2792.3,0.4625]
[1763947896221,0.33277248,2793.3,2792.3,4.2825]
[1763947896380,5.680314,2793.5,2792.3,4.2825]
[1763947896582,0.33277248,2793.4,2792.4,0.451]
[1763947896789,3.34448164,2793.5,2792.4,0.451]
[1763947896980,0.33277248,2793.4,2792.4,0.451]
[1763947897326,0.33277248,2793.3,2792.4,0.89629]
[1763947897503,0.18728574,2793.6,2792.4,0.89629]
[1763947897504,0.04475153,2793.2,2792.4,0.451]
[1763947897998,0.33277248,2793.3,2792.4,0.451]
[1763947898198,0.33277248,2793.5,2792.4,0.451]
[1763947898417,0.37752081,2793.4,2792.4,0.89629]
[1763947898591,0.33277248,2793.3,2792.4,0.89629]
[1763947898795,0.33277248,2793.5,2792.5,0.451]
[1763947898997,0.33277248,2793.4,2792.5,0.451]
[1763947899202,0.33277248,2793.3,2792.5,0.451]
[1763947899398,0.33277248,2793.5,2792.5,0.451]
[1763947899599,0.33277248,2793.4,2792.5,0.451]
[1763947899799,0.33277248,2793.3,2792.5,0.922629]
[1763947900000,0.04475153,2793.2,2792.3,4.271]
[1763947900325,0.90699264,2793.0,2792.3,4.271]
[1763947900524,0.37752882,2792.9,2792.2,0.1819]
[1763947900820,0.33277248,2793.0,2792.3,0.451]
[1763947901027,0.90699264,2793.2,2792.3,0.451]
[1763947901211,0.90699264,2792.7,2792.3,0.001]
[1763947901413,0.37753363,2792.6,2792.3,0.001]
[1763947901611,0.33277248,2792.5,2792.3,0.001]
[1763947901823,0.04476436,2792.4,2792.3,0.001]
[1763947902296,0.33277248,2792.7,2792.3,0.001]
[1763947902497,0.33277248,2792.6,2792.3,0.001]
[1763947902759,0.33277248,2792.8,2792.3,0.001]
[1763947903038,1.23976512,2792.7,2792.3,0.001]
[1763947903193,0.4248,2792.4,2792.3,0.001]
[1763947903596,0.75757248,2792.4,2792.3,0.001]
[1763947904039,0.4248,2792.4,2792.3,0.001]
[1763947904197,0.75757248,2792.4,2792.3,0.001]
[1763947904644,0.33277248,2792.4,2792.3,0.001]
[1763947905018,0.76067248,2792.4,2792.3,0.001]
[1763947905326,1.66766512,2792.4,2792.0,0.001]
[1763947905499,0.33277248,2792.3,2792.0,0.001]
[1763947905700,0.33277248,2792.2,2792.0,0.001]
[1763947905929,0.33277248,2792.7,2792.1,0.1846]
[1763947906238,0.33277248,2792.6,2792.1,1.1313]
[1763947906398,0.33277248,2792.5,2792.2,3.82]
[1763947906603,0.33277248,2792.4,2792.2,4.2731]
[1763947906852,2.34046414,2793.2,2792.3,4.2731]
[1763947907002,0.61508955,2793.1,2792.3,4.7667]
[1763947907202,0.33524314,2793.0,2792.4,0.4531]
[1763947907442,0.33524314,2792.9,2792.3,4.3136]
[1763947907732,0.33524314,2792.8,2792.3,4.3136]
[1763947907934,0.33524314,2792.7,2792.3,4.3136]
[1763947908141,0.33524314,2792.6,2792.4,3.82]
[1763947908438,0.33524314,2792.5,2792.4,3.82]
[1763947908634,0.79324314,2792.8,2792.4,3.82]
[1763947908836,0.33524314,2792.7,2792.4,3.82]
[1763947909040,0.33524314,2792.6,2792.4,3.82]
[1763947909245,0.33524314,2792.5,2792.4,3.82]
[1763947909415,0.04476275,2792.5,2792.4,3.82]
[1763947909614,0.04476275,2792.5,2791.8,0.57215]
[1763947909814,0.38000589,2792.5,2791.8,0.57215]
[1763947910022,0.04476275,2792.5,2791.8,0.57215]
[1763947910268,0.33524314,2792.4,2791.8,0.57215]
[1763947910563,0.33524314,2792.3,2791.8,0.57215]
[1763947910712,0.33524314,2792.2,2791.3,0.46129582]
[1763947910912,0.38001231,2792.1,2791.0,0.1819]
[1763947911132,0.90699264,2791.8,2791.0,0.1819]
[1763947911333,0.958713,2791.7,2791.0,0.1819]
[1763947911548,0.33524314,2791.6,2791.0,0.1819]
[1763947911757,0.33524314,2791.5,2791.0,0.1819]
[1763947911942,0.33524314,2791.4,2791.0,0.1819]
[1763947912120,0.33524314,2791.3,2791.0,0.1819]
[1763947912319,0.33524314,2791.6,2791.0,0.1819]
[1763947912514,0.33524314,2791.5,2791.0,0.1819]
[1763947912720,0.33524314,2791.6,2791.0,0.1819]
[1763947912921,0.33524314,2791.5,2791.0,0.1819]
[1763947913124,0.33524314,2791.6,2791.0,0.1819]
[1763947913322,0.33524314,2791.5,2791.0,0.1819]
[1763947913523,0.33524314,2791.6,2791.0,0.1819]
[1763947913743,0.33524314,2791.5,2791.0,0.1819]
[1763947913922,0.33524314,2791.6,2791.0,0.1819]
[1763947914126,0.33524314,2791.5,2791.0,0.1819]
[1763947914334,0.90699264,2791.4,2790.6,0.1819]
[1763947914661,0.33524314,2791.3,2790.6,0.1819]
[1763947914861,0.79324314,2791.5,2790.6,0.1819]
[1763947915046,0.33524314,2791.4,2790.6,0.1819]
[1763947915258,0.33524314,2791.4,2790.0,0.1819]
[1763947915259,0.79288341,2791.4,2790.0,0.1819]
[1763947915454,0.33488341,2791.3,2790.0,0.1819]
[1763947915648,0.458,2791.3,2790.0,0.1819]
[1763947915949,0.90699264,2791.1,2790.0,0.1819]
[1763947916154,0.90699264,2790.8,2790.0,0.1319]
[1763947916350,0.33488341,2790.7,2790.0,0.1319]
[1763947916551,0.1865,2790.7,2790.0,0.1319]
[1763947916867,0.33488341,2790.8,2790.0,0.1319]
[1763947917364,0.33488341,2791.2,2790.0,0.1319]
[1763947917662,0.90699264,2791.2,2790.0,0.1319]
[1763947917860,0.75567951,2791.1,2790.0,0.1319]
[1763947918163,0.33423655,2791.1,2790.0,0.1319]
[1763947918469,0.33423655,2791.4,2790.0,0.1319]
[1763947919262,0.79223655,2791.4,2790.0,0.1319]
[1763947919466,1.69922919,2791.4,2790.0,0.1319]
[1763947919762,0.79223655,2791.3,2790.0,0.1329]
[1763947919937,0.44194506,2791.2,2790.0,0.1329]
[1763947920143,0.458,2791.1,2790.0,0.1329]
[1763947920344,0.79223655,2791.1,2790.0,0.1329]
[1763947920546,0.33423655,2791.1,2790.0,0.1329]
[1763947920741,1.24122919,2791.1,2790.0,0.1329]
[1763947921064,0.33423655,2791.0,2790.0,0.1329]
[1763947921265,0.90699264,2791.5,2790.0,0.1329]
[1763947921585,0.79189312,2791.4,2790.0,0.1329]
[1763947921967,0.33389312,2791.4,2790.2,0.1]
[1763947922155,0.52039312,2791.7,2790.2,0.1]
[1763947922550,0.04477718,2791.6,2790.2,0.1]
[1763947922752,0.3786703,2791.6,2790.2,0.1]
[1763947922960,0.458,2791.5,2790.1,0.46129582]
[1763947923361,0.458,2791.5,2790.0,0.1329]
[1763947923362,0.64789102,2791.4,2790.0,0.1329]
[1763947923782,0.6445,2791.7,2790.0,0.2329]
[1763947923985,0.33381352,2791.6,2790.0,0.2329]
[1763947924567,0.33381352,2791.6,2790.3,0.1]
[1763947924956,0.1865,2791.9,2790.3,0.1]
[1763947925151,4.78202446,2792.4,2790.1,0.01808833]
[1763947925152,4.78202446,2792.4,2790.4,0.01808255]
[1763947925387,1.31580588,2792.3,2790.7,0.1]
[1763947925686,0.33380343,2792.2,2790.7,0.1]
[1763947925879,0.3338279,2792.2,2790.7,0.1]
[1763947926790,0.90699264,2791.8,2790.3,0.1]
[1763947927087,0.23837558,2791.7,2790.3,0.1]
[1763947927286,1.61836458,2792.3,2790.3,0.1]
[1763947927287,0.4843,2792.2,2790.3,0.1]
[1763947927488,0.5487746,2792.1,2790.6,0.1]
[1763947927652,0.90699264,2791.9,2790.6,0.1]
[1763947927857,0.4843,2792.0,2790.6,0.1]
[1763947928068,0.4843,2792.0,2790.0,0.1329]
[1763947928069,0.1936,2791.8,2790.5,0.1]
[1763947928584,0.21474305,2792.1,2790.5,0.1]
[1763947928785,0.33413691,2792.2,2790.1,0.01807936]
[1763947928986,0.18736949,2792.3,2791.0,0.1]
[1763947929699,0.04476756,2792.2,2790.3,0.0180691]
[1763947929893,0.04476756,2792.2,2791.0,0.1]
[1763947930699,0.04476756,2792.2,2790.1,0.90699264]
[1763947930899,0.4843,2792.2,2790.2,0.58199171]
[1763947931110,0.4843,2792.2,2790.7,0.1]
[1763947931478,0.4843,2792.2,2790.2,0.58199171]
[1763947931479,0.4843,2792.2,2790.3,3.60191826]
[1763947931791,0.002,2792.4,2790.3,3.60191826]
[1763947931792,0.002,2792.4,2790.8,0.1]
[1763947932111,0.002,2792.4,2791.3,0.1]
[1763947932275,0.4863,2792.4,2791.1,0.1]
[1763947932602,0.4863,2792.4,2790.2,1.50705344]
[1763947932832,0.4863,2792.4,2790.5,0.1]
[1763947932833,2.383252,2792.2,2790.5,0.1]
[1763947933107,0.04476917,2792.1,2790.5,0.1]
[1763947933504,0.4843,2792.2,2790.8,0.1]
[1763947934107,0.002,2792.4,2791.1,0.1]
[1763947934487,0.002,2792.4,2790.9,0.01806906]
[1763947934684,0.002,2792.4,2791.5,4.78002446]
[1763947935015,0.002,2792.4,2791.6,1.84629091]
[1763947935211,0.002,2792.4,2792.3,0.1]
[1763947935418,0.002,2792.7,2792.3,0.1]
[1763947935725,0.002,2792.7,2792.6,0.1]
[1763947937524,0.002,2792.7,2792.1,0.90699264]
[1763947937525,0.002,2792.7,2792.4,0.1]
[1763947937727,0.002,2792.7,2792.1,0.90699264]
[1763947938021,0.002,2793.3,2793.2,0.1]
[1763947938208,0.002,2793.3,2792.9,0.1]
[1763947938726,0.002,2793.3,2793.2,0.1]